Cogmind - Beta 17.1 @@@ ROGUE MODE // 2026.09.07 @ 17:28:05 Player: C0-2MO Result: Destroyed by P-80 Master with Gamma Rifle Performance ------------- Evolutions (6) 3000 Regions Visited (18) 3600 Robots Destroyed (76) 380 Value Destroyed (1832) 1832 Prototype IDs (33) 660 Alien Tech Used (3) 600 Bonus (1800) 1800 TOTAL SCORE: 11872 Bonus ------- Entered DSFs 500 Met Zhirov 300 Met Warlord at Base 500 MAIN.C Attacked Warlord 500 Cogmind --------- Core Integrity 0/1150 Matter 300/300 Energy 99/100 System Corruption 1% Temperature Cool (0) Movement Core (50) Location -3/Proximity Caves Parts ------- > --- POWER (2) -------- (None) > --- PROPULSION (2) --- (None) > --- UTILITY (14) ----- Advanced Weight Redist. System Advanced Visual Processing Unit 0b10 Decoder Chip [Generic] 0b10 Decoder Chip [Looter] Improved Launcher Guidance Computer Improved Launcher Guidance Computer Hacking Suite Improved Hacking Suite Advanced System Shield Experimental System Shield > --- WEAPON (2) ------- (None) > --- INVENTORY (5) ---- Light Antimatter Reactor Matter Neutralizer Plasma Cutter Peak State ------------ > --- POWER ------------ Makeshift Power Source Makeshift Power Source > --- PROPULSION ------- (None) > --- UTILITY ---------- Advanced Weight Redist. System Advanced Visual Processing Unit Improved Sensor Array Seismic Detector 0b10 Decoder Chip [Generic] 0b10 Decoder Chip [Looter] Improved Launcher Guidance Computer Hacking Suite Improved Hacking Suite Improved Hacking Suite Advanced System Shield Experimental System Shield Experimental System Shield > --- WEAPON ----------- Backup Laser III RU-N14's Throwing Claymores v3 > --- INVENTORY -------- Makeshift Power Source Transdimensional Reconstructor Matter Neutralizer Plasma Cutter [Rating: 83] Favorites ----------- Power Light Deuterium Engine Engine Light Deuterium Engine Power Core Light Nuclear Core Reactor Light Antimatter Reactor Propulsion None Utility Experimental System Shield Device Advanced Weight Redist. System Processor Advanced Visual Processing Unit Hackware Experimental System Shield Protection Experimental Utility Shielding Weapon Kinetic Spear Energy Gun Improved Medium Laser Energy Cannon Matter Neutralizer Ballistic Gun Light Assault Rifle Launcher Grenade Launcher Special Weapon Mining Laser Impact Weapon Shock Maul Slashing Weapon Makeshift Sword Piercing Weapon Kinetic Spear Special Melee Weapon Datajack Build | -11 -10 -9 -8 -8 -8 -8 -6 -6 -5 -5 -5 -5 -4 -4 -4 -4 -4 -3 ------- Run | Yrd Mat Mat Mat Sto Rec Scr Fac DSF Fac Upp Upp Zhi Pro Fac Upp Upp War Pro Slots Evolved 12 | . . 2 2 . . . 4 . 2 . . . . 2 . . . . Power . | . . . . . . . . . . . . . . . . . . . Propulsion . | . . . . . . . . . . . . . . . . . . . Utility 12 | . . 2 2 . . . 4 . 2 . . . . 2 . . . . Weapon . | . . . . . . . . . . . . . . . . . . . Parts Attached 81 | 3 6 7 9 8 1 1 . 4 16 1 1 3 6 1 2 4 4 4 Power 18 | . . 2 1 2 1 . . . 4 . . 1 1 . 1 1 2 2 Engine 13 | . . 2 1 2 1 . . . 3 . . . . . . 1 2 1 Core 4 | . . . . . . . . . 1 . . 1 1 . 1 . . . Reactor 1 | . . . . . . . . . . . . . . . . . . 1 Propulsion . | . . . . . . . . . . . . . . . . . . . Treads . | . . . . . . . . . . . . . . . . . . . Leg . | . . . . . . . . . . . . . . . . . . . Wheel . | . . . . . . . . . . . . . . . . . . . Hover . | . . . . . . . . . . . . . . . . . . . Flight . | . . . . . . . . . . . . . . . . . . . Utility 42 | 1 3 2 4 3 . 1 . 4 11 1 1 2 3 1 . 3 1 1 Device 17 | 1 1 1 . 1 . . . . 7 1 . 1 1 . . 2 1 . Storage . | . . . . . . . . . . . . . . . . . . . Processor 8 | . 1 . 1 . . 1 . . 1 . 1 . 1 . . 1 . 1 Hackware 13 | . . 1 2 2 . . . 4 2 . . 1 . 1 . . . . Protection 4 | . 1 . 1 . . . . . 1 . . . 1 . . . . . Artifact . | . . . . . . . . . . . . . . . . . . . Weapon 21 | 2 3 3 4 3 . . . . 1 . . . 2 . 1 . 1 1 Energy Gun 4 | . 1 2 1 . . . . . . . . . . . . . . . Energy Cannon 1 | . . . . . . . . . . . . . . . . . . 1 Ballistic Gun 7 | 2 2 . . 2 . . . . . . . . . . 1 . . . Ballistic Cannon . | . . . . . . . . . . . . . . . . . . . Launcher 2 | . . . 1 . . . . . . . . . 1 . . . . . Special Weapon 2 | . . 1 . . . . . . . . . . . . . . 1 . Impact Weapon 1 | . . . . 1 . . . . . . . . . . . . . . Slashing Weapon 2 | . . . 1 . . . . . . . . . 1 . . . . . Piercing Weapon 1 | . . . . . . . . . 1 . . . . . . . . . Special Melee Weapon 1 | . . . 1 . . . . . . . . . . . . . . . Unidentified Prototypes 13 | . . 1 1 3 . . . 1 1 . . 2 . . . 1 2 1 Parts Lost 40 | . 4 1 3 3 . . . 2 8 . . . 8 1 2 . . 8 Power 12 | . . 1 1 1 . . . 1 2 . . . 2 . 1 . . 3 Propulsion . | . . . . . . . . . . . . . . . . . . . Utility 19 | . 1 . 1 1 . . . 1 6 . . . 4 . 1 . . 4 Weapon 9 | . 3 . 1 1 . . . . . . . . 2 1 . . . 1 Highest Loss Streak 6 | . 2 1 3 3 . . . 2 6 . . . 5 1 2 . . 6 To Critical Strikes . | . . . . . . . . . . . . . . . . . . . Average Backups 4 | . 2 4 4 4 4 5 5 5 4 4 4 4 2 2 4 4 5 3 Power . | . . . . . . . . . . . . . . . . . . . Propulsion . | . . . . . . . . . . . . . . . . . . . Utility 1 | . 1 2 1 2 1 1 1 1 2 2 2 2 . . . . . . Weapon 1 | . 1 2 2 2 3 3 3 2 1 1 1 1 . . 1 1 2 1 Tool/Special . | . . . . . . . . . . . . . . . . . . . Unused Backups 5 | . . . . . . . . . 2 . . . . . . . 2 1 Power . | . . . . . . . . . . . . . . . . . . . Propulsion . | . . . . . . . . . . . . . . . . . . . Utility 2 | . . . . . . . . . 2 . . . . . . . . . Weapon 1 | . . . . . . . . . . . . . . . . . 1 . Tool/Special 2 | . . . . . . . . . . . . . . . . . 1 1 Average Slot Usage (%) 64 | . 48 57 74 72 70 72 53 52 74 52 59 67 65 58 59 59 76 65 Engine 3 | . . 3 6 6 8 9 6 3 4 . . . . . . . 8 5 Device 13 | . 11 19 16 15 17 18 13 13 15 12 16 17 7 5 5 7 15 9 Processor 11 | . 9 11 11 9 9 9 6 6 9 5 7 11 16 15 15 19 20 20 Hackware 24 | . . 4 24 26 27 27 20 22 34 29 29 31 29 26 31 30 30 25 Protection 1 | . . . . 1 . . . . 2 . . . 3 5 4 . . . Energy Gun 1 | . . 14 8 . . . . . . . . . . . . . 2 2 Ballistic Gun 4 | . 25 2 . 9 1 . . . . . . . . . . 1 . . Impact Weapon 1 | . . . . . 7 9 6 6 . . . . . . . . . . Piercing Weapon 1 | . . . . . . . . . 4 4 5 5 2 . . . . . Peak Build Rating 83 | 3 4 14 22 25 24 25 25 51 67 56 61 71 76 62 66 66 81 83 Average Rating 40 | 2 3 9 18 21 23 24 25 30 61 50 57 64 59 57 61 62 71 63 On Entrance 37 | . 3 4 11 15 18 24 25 25 51 49 50 61 71 57 58 54 65 75 Avg Prop Armor Cover (%) . | . . . . . . . . . . . . . . . . . . . Naked Turns . | . . . . . . . . . . . . . . . . . . . Heaviest Build 14 | 5 5 7 9 10 9 9 9 9 11 6 6 11 11 3 6 6 12 14 Greatest Support 12 | 3 3 9 9 9 9 9 9 9 12 12 12 12 12 3 12 12 12 12 Greatest Overweight (x) 4 | 1 1 . 2 1 . . . . 1 1 1 1 2 . . 1 . 4 Average Overweight (x) . | . . . . . . . . . . . . . . . . . . . Largest Inventory Capacity 5 | 5 5 5 5 5 5 5 5 5 5 5 5 5 5 5 5 5 5 5 Average Capacity 5 | 5 5 5 5 5 5 5 5 5 5 5 5 5 5 5 5 5 5 5 Most Carried 5 | . 5 5 5 5 5 5 5 5 5 5 5 5 5 2 5 5 5 5 Average Carried 4 | . 2 4 4 4 4 5 5 5 4 4 4 4 2 2 4 4 4 3 Final Capacity 5 | 5 5 5 5 5 5 5 5 5 5 5 5 5 5 5 5 5 5 5 Final Carried 5 | . 5 4 5 5 5 5 5 5 5 5 4 5 2 2 5 5 5 3 Class Distribution -------------------- 41% | Wizard-Mutant 26% | Hacker-Mutant 11% | Scavenger-Mutant 10% | Wizard-Scout 9% | Mutant Dominant Class ---------------- Mutant | -10/Materials Mutant | -9/Materials Scavenger-Mutant | -8/Materials Hacker-Mutant | -8/Storage Hacker-Mutant | -8/Recycling Hacker-Mutant | -8/Scraptown Hacker-Mutant | -6/Factory Hacker-Mutant | -6/DSF Wizard-Scout | -5/Factory Wizard-Mutant | -5/Upper Caves Wizard-Mutant | -5/Upper Caves Wizard-Mutant | -5/Zhirov Wizard-Mutant | -4/Proximity Caves Wizard-Mutant | -4/Factory Wizard-Mutant | -4/Upper Caves Wizard-Mutant | -4/Upper Caves Wizard-Mutant | -4/Warlord Hacker-Mutant | -3/Proximity Caves Resources | -11 -10 -9 -8 -8 -8 -8 -6 -6 -5 -5 -5 -5 -4 -4 -4 -4 -4 -3 ----------- Run | Yrd Mat Mat Mat Sto Rec Scr Fac DSF Fac Upp Upp Zhi Pro Fac Upp Upp War Pro Matter Collected 1782 | 284 314 64 185 229 58 10 . . 216 25 20 40 67 . 45 135 . 90 Remotely . | . . . . . . . . . . . . . . . . . . . Salvage Created 2799 | 75 617 308 408 340 . . . . 356 . 133 111 291 . 74 . . 86 Parts 177 | 6 54 11 29 25 . . . . 22 . 5 1 17 . 2 . . 5 Haulers Intercepted 6 | . 2 2 1 . . . . . 1 . . . . . . . . . Recyclers Shooed 2 | . . . 2 . . . . . . . . . . . . . . . Parts Field Recycled . | . . . . . . . . . . . . . . . . . . . Retrieved Matter . | . . . . . . . . . . . . . . . . . . . Parts Self-Destructed 25 | . . . . . . . . . . . 2 . 14 . 5 . . 4 Prevented 2 | . . . . . . . . . . . . . . . 2 . . . Parts Restored . | . . . . . . . . . . . . . . . . . . . Kills | -11 -10 -9 -8 -8 -8 -8 -6 -6 -5 -5 -5 -5 -4 -4 -4 -4 -4 -3 ------- Run | Yrd Mat Mat Mat Sto Rec Scr Fac DSF Fac Upp Upp Zhi Pro Fac Upp Upp War Pro Combat Hostiles Destroyed 45 | . 13 3 8 6 . . . . . . . . 9 . . . . 6 Melee 3 | . . . . . . . . . . . . . 3 . . . . . Guns 25 | . 13 3 3 6 . . . . . . . . . . . . . . Cannons 2 | . . . . . . . . . . . . . . . . . . 2 AOE 14 | . . . 4 . . . . . . . . . 6 . . . . 4 Classes Destroyed 17 | 2 6 2 1 2 . . . . . . 2 . 1 . . . . 1 Worker 5 | . 4 . . . . . . . 1 . . . . . . . . . Builder 5 | . . . . 1 . . . . 4 . . . . . . . . . Tunneler 2 | 1 1 . . . . . . . . . . . . . . . . . Hauler 6 | . 2 2 1 . . . . . 1 . . . . . . . . . Recycler 2 | 1 . . 1 . . . . . . . . . . . . . . . Minesweeper 1 | . . . . . . . . . . . 1 . . . . . . . Mechanic 3 | . . 1 . . . . . . 2 . . . . . . . . . Operator 2 | . 1 . 1 . . . . . . . . . . . . . . . Drone 1 | . . . . . . . . . . . . . 1 . . . . . Watcher 5 | . 2 . 2 . . . . . 1 . . . . . . . . . Swarmer 19 | . 6 . 1 . . . . . . . . . 8 . . . . 4 Cutter 4 | . . . 4 . . . . . . . . . . . . . . . Grunt 10 | . 7 1 1 1 . . . . . . . . . . . . . . Sentry 8 | . . 2 2 4 . . . . . . . . . . . . . . Hunter 1 | . . . . 1 . . . . . . . . . . . . . . Programmer 2 | . . . . . . . . . . . . . . . . . . 2 Decomposer 2 | . . . . . . . . . . . 2 . . . . . . . Samaritan 1 | . . . . . . . . . . . 1 . . . . . . . Best Kill Streak 9 | 2 7 4 6 3 . . . . 2 . 1 . 9 . . . . 4 Combat Bots Only 9 | . 7 3 4 3 . . . . . . . . 9 . . . . 4 Max Kills in Single Turn 3 | 1 1 1 2 1 . . . . 1 . 1 . 3 . . . . 3 Gunslinging . | . . . . . . . . . . . . . . . . . . . Exploded 3 | . . . 2 . . . . . . . . . 3 . . . . 3 Melee 1 | . . . . . . . . . . . . . 1 . . . . . Uniques/NPCs Destroyed . | . . . . . . . . . . . . . . . . . . . Combat | -11 -10 -9 -8 -8 -8 -8 -6 -6 -5 -5 -5 -5 -4 -4 -4 -4 -4 -3 -------- Run | Yrd Mat Mat Mat Sto Rec Scr Fac DSF Fac Upp Upp Zhi Pro Fac Upp Upp War Pro Hostile Shots Fired 493 | . 89 26 46 44 . . . 40 44 5 3 . 73 13 33 2 . 75 Missed 170 | . 27 10 17 13 . . . 14 12 4 2 . 24 5 17 1 . 24 Hits 323 | . 62 16 29 31 . . . 26 32 1 1 . 49 8 16 1 . 51 Melee 13 | . . . 7 . . . . . . . . . . 6 . . . . Projectile 310 | . 62 16 22 31 . . . 26 32 1 1 . 49 2 16 1 . 51 AOE 4 | . . . 1 . . . . . . . . . . 3 . . . . Critical Strikes 14 | . . . . 1 . . . 1 6 . . . . 3 1 . . 2 Actively Blocked 5 | . . . . . . . . . 5 . . . . . . . . . Part Disruptions 1 | . . . . . . . . . . . . . . . . . . 1 Damage Taken 5554 | . 619 215 492 520 . . . 310 617 12 21 . 963 249 279 17 . 1240 Core 2898 | . 181 66 232 194 . . . 211 275 12 . . 572 152 207 17 . 779 Absorbed by Shields . | . . . . . . . . . . . . . . . . . . . Redirected to Shielding 255 | . . . . . . . . . 103 . . . 70 67 15 . . . Regen/Repaired (Parts) 43 | . . . 14 29 . . . . . . . . . . . . . . Core Remaining (%) 53 | 100 27 83 . . . 22 . 75 . . . . 14 . . . . . Volleys Fired 207 | 9 91 28 29 14 . . . . . . . . 2 . 2 15 . 17 Largest 2 | 2 2 2 2 2 . . . . . . . . 1 . 1 1 . 1 Hottest 112 | 40 40 112 112 50 . . . . . . . . 30 . 35 35 . 105 Shots Fired 330 | 18 174 41 33 28 . . . . . . . . 2 . 2 15 . 17 Gun 306 | 18 174 39 30 28 . . . . . . . . . . 2 15 . . Cannon 12 | . . . . . . . . . . . . . . . . . . 12 Launcher 5 | . . . 3 . . . . . . . . . 2 . . . . . Special 7 | . . 2 . . . . . . . . . . . . . . . 5 Kinetic 241 | 18 174 4 . 28 . . . . . . . . . . 2 15 . . Thermal 57 | . . 37 8 . . . . . . . . . . . . . . 12 Explosive 10 | . . . 3 . . . . . . . . . 2 . . . . 5 Electromagnetic 22 | . . . 22 . . . . . . . . . . . . . . . Robot Hit Streak 10 | 4 9 10 7 9 . . . . . . . . . . 2 . . 6 Robot Miss Streak 6 | 2 6 3 6 4 . . . . . . . . 2 . . . . 3 Penetration Max . | . . . . . . . . . . . . . . . . . . . Secondary Targets 3 | . 2 1 . . . . . . . . . . . . . . . . Max Gunslinging Chain 1 | . 1 1 . . . . . . . . . . . . . . . . Shots Hit Robots 234 | 9 94 26 30 24 . . . . 15 . 10 2 11 4 2 . . 7 Core Hits 130 | 2 47 9 28 13 . . . . 7 . 3 . 11 . 1 . . 9 Critical Kills . | . . . . . . . . . . . . . . . . . . . Critical Parts Destroyed . | . . . . . . . . . . . . . . . . . . . Critical Strikes 8 | . . 4 2 . . . . . . . 1 1 . . . . . . Burn 5 | . . 4 1 . . . . . . . . . . . . . . . Sever 1 | . . . 1 . . . . . . . . . . . . . . . Impale 2 | . . . . . . . . . . . 1 1 . . . . . . Melee Attacks 125 | . . . 10 12 4 . . . 40 3 13 2 25 16 . . . . Impact 4 | . . . . . 4 . . . . . . . . . . . . . Slashing 46 | . . . 7 12 . . . . . . . . 11 16 . . . . Piercing 72 | . . . . . . . . . 40 3 13 2 14 . . . . . Sneak Attacks 25 | . . . 4 1 . . . . 10 . 7 . 1 2 . . . . Combat Hostiles 3 | . . . . 1 . . . . 1 . . . 1 . . . . . Follow-up Attacks . | . . . . . . . . . . . . . . . . . . . Damage Inflicted 7334 | 111 1004 394 946 462 . . . . 1086 . 653 159 1143 228 48 . . 1100 Guns 2379 | 111 1004 394 437 385 . . . . . . . . . . 48 . . . Cannons 139 | . . . . . . . . . . . . . . . . . . 139 Explosions 1578 | . . . 346 . . . . . . . . . 471 . . . . 761 Melee 3038 | . . . 163 77 . . . . 1086 . 653 159 672 228 . . . . Ramming . | . . . . . . . . . . . . . . . . . . . Kinetic 1565 | 111 1004 17 . 385 . . . . . . . . . . 48 . . . Thermal 728 | . . 377 212 . . . . . . . . . . . . . . 139 Explosive 1467 | . . . 235 . . . . . . . . . 471 . . . . 761 Electromagnetic 336 | . . . 336 . . . . . . . . . . . . . . . Impact . | . . . . . . . . . . . . . . . . . . . Slashing 1098 | . . . 163 77 . . . . . . . . 430 228 . . . 200 Piercing 2140 | . . . . . . . . . 1086 . 653 159 242 . . . . . Highest Corruption 4 | . . . . . . . . . 4 4 . . . . . . . 1 Average Corruption 2 | . . . . . . . . . 3 2 . . . . . . . 1 Corruption Purged 4 | . . . . . . . . . . 4 . . . . . . . . Corruption Blocked . | . . . . . . . . . . . . . . . . . . . Effects 4 | . . . . . . . . . 4 . . . . . . . . . Message Errors 2 | . . . . . . . . . 2 . . . . . . . . . Matter Fused 2 | . . . . . . . . . 2 . . . . . . . . . Overload Shots . | . . . . . . . . . . . . . . . . . . . Overflow Damage 946 | . . . 40 . . . . . 255 . 221 190 120 34 . . . 86 Projectiles 40 | . . . . . . . . . . . . . . . . . . 40 Explosions 78 | . . . 27 . . . . . . . . . 5 . . . . 46 Melee 828 | . . . 13 . . . . . 255 . 221 190 115 34 . . . . Knockbacks . | . . . . . . . . . . . . . . . . . . . Impact . | . . . . . . . . . . . . . . . . . . . Kinetic . | . . . . . . . . . . . . . . . . . . . Secondary . | . . . . . . . . . . . . . . . . . . . Self-Inflicted Damage 114 | . . . 86 . . . . . . . . . 28 . . . . . Shots 6 | . . . 4 . . . . . . . . . 2 . . . . . Rammed . | . . . . . . . . . . . . . . . . . . . Targets Rammed . | . . . . . . . . . . . . . . . . . . . Kicked . | . . . . . . . . . . . . . . . . . . . Crushed . | . . . . . . . . . . . . . . . . . . . Highest Temperature 207 | . 4 207 108 14 . . . . . . . . . . . . . 80 Average Temperature 47 | . 1 71 27 7 . . . . . . . . . . . . . 34 Received Heat Transfer 738 | . 177 60 81 198 . . . 48 18 . . . 75 12 42 9 . 18 Siege Activations . | . . . . . . . . . . . . . . . . . . . Martial Activations . | . . . . . . . . . . . . . . . . . . . Shielding Activations . | . . . . . . . . . . . . . . . . . . . Robots Disrupted . | . . . . . . . . . . . . . . . . . . . Combat Hostiles . | . . . . . . . . . . . . . . . . . . . Robots Corrupted 1 | . . . 1 . . . . . . . . . . . . . . . Combat Hostiles 1 | . . . 1 . . . . . . . . . . . . . . . Parts Fried . | . . . . . . . . . . . . . . . . . . . Impact Corruptions . | . . . . . . . . . . . . . . . . . . . Robots Melted . | . . . . . . . . . . . . . . . . . . . Combat Hostiles . | . . . . . . . . . . . . . . . . . . . Parts Melted 6 | . . 4 2 . . . . . . . . . . . . . . . Heat Transferred 1755 | . . 1111 496 . . . . . . . . . . . . . . 148 Parts Sabotaged . | . . . . . . . . . . . . . . . . . . . Parts Stolen . | . . . . . . . . . . . . . . . . . . . Parts Stripped . | . . . . . . . . . . . . . . . . . . . Power Chain Reactions 2 | . . . 2 . . . . . . . . . . . . . . . Alert | -11 -10 -9 -8 -8 -8 -8 -6 -6 -5 -5 -5 -5 -4 -4 -4 -4 -4 -3 ------- Run | Yrd Mat Mat Mat Sto Rec Scr Fac DSF Fac Upp Upp Zhi Pro Fac Upp Upp War Pro Maximum Alert Level 2 | . 1 . . 1 . . . . . . . . . 2 . . . . Low Security (%) 89 | 100 89 100 100 78 100 . 100 100 100 . . . . . . . . . Level 1 4 | . 10 . . 21 . . . . . . . . . . . . . . Level 2 6 | . . . . . . . . . . . . . . 100 . . . . Level 3 . | . . . . . . . . . . . . . . . . . . . Level 4 . | . . . . . . . . . . . . . . . . . . . Level 5 . | . . . . . . . . . . . . . . . . . . . High Security . | . . . . . . . . . . . . . . . . . . . Max Security . | . . . . . . . . . . . . . . . . . . . Peak Influence 654 | 5 218 162 199 352 121 . 15 10 53 . . . . 654 . . . . Initial 654 | . . 84 57 83 119 . . 10 . . . . . 654 . . . . Average 110 | 2 127 118 102 156 41 . 4 3 12 . . . . 616 . . . . Influence Increases 3435 | 10 542 162 502 434 83 . 15 . 219 . 5 . 595 498 170 30 . 170 Destroy 0b10 Robot/C 880 | . 260 60 160 120 . . . . . . . . 160 . . . . 120 Destroy 0b10 Robot/NC 170 | 10 50 15 25 5 . . . . 45 . 5 . 10 . 5 . . . Destroy Leader 222 | . 58 34 36 50 . . . . 4 . . . 20 . . . . 20 Allied During Kill 5 | . . . . 5 . . . . . . . . . . . . . . Trap Triggered on 0b10 10 | . . . 10 . . . . . . . . . . . . . . . Successful Hack 95 | . 39 6 14 9 6 . . . 21 . . . . . . . . . Select Force Hacks 90 | . . . . . 60 . . . 30 . . . . . . . . . Disable Machine 60 | . . . . 30 15 . . . 15 . . . . . . . . . Destroy Structure 103 | . . 2 32 5 2 . . . 44 . . . . 18 . . . . Advance Influence 450 | . . . . . . . . . . . . . . 450 . . . . Partial Spotted 90 | . . 30 15 . . . 15 . 30 . . . . . . . . . Lose Combat Pursuer 1260 | . 135 15 210 210 . . . . 30 . . . 405 30 165 30 . 30 Influence Decreases 3405 | 10 342 226 439 326 390 . . 15 219 . 5 . 270 241 434 191 157 140 Entered New Map 1059 | . . 116 79 116 188 . . 5 . . . . . 121 216 61 157 . Time Decay 1803 | 10 302 90 150 130 202 . . . 196 . 5 . 200 110 198 130 . 80 Lost Part 289 | . 40 10 20 30 . . . 10 19 . . . 70 10 20 . . 60 Lost Ally 64 | . . 10 . 50 . . . . 4 . . . . . . . . . Purge Threat 190 | . . . 190 . . . . . . . . . . . . . . . Squads Dispatched 22 | . 3 2 4 3 . . . . 5 . . . 1 4 . . . . Investigation 7 | . 1 . 1 1 . . . . 3 . . . . 1 . . . . Extermination 2 | . . . . . . . . . 2 . . . . . . . . . Reinforcement 10 | . 2 2 3 . . . . . . . . . . 3 . . . . Assault 3 | . . . . 2 . . . . . . . . 1 . . . . . Garrison . | . . . . . . . . . . . . . . . . . . . Intercept . | . . . . . . . . . . . . . . . . . . . Searches Triggered . | . . . . . . . . . . . . . . . . . . . Construction Impeded 2 | . . . 1 . . . . . . . . . . 1 . . . . Haulers Reinforced 1 | . . . . . . . . . . . . . . 1 . . . . Active Scanning Responses . | . . . . . . . . . . . . . . . . . . . Cargo Convoy Interrupts . | . . . . . . . . . . . . . . . . . . . Stealth | -11 -10 -9 -8 -8 -8 -8 -6 -6 -5 -5 -5 -5 -4 -4 -4 -4 -4 -3 --------- Run | Yrd Mat Mat Mat Sto Rec Scr Fac DSF Fac Upp Upp Zhi Pro Fac Upp Upp War Pro Distress Signals 7 | . 3 1 2 . . . . . . . . . 1 . . . . . Communications Jammed . | . . . . . . . . . . . . . . . . . . . Distress Signals . | . . . . . . . . . . . . . . . . . . . Times Spotted 195 | . 30 14 29 30 . . . 2 15 2 1 . 36 5 13 2 . 16 Peak Tracking Total 16 | . 7 6 12 16 . . . 2 7 3 1 . 15 2 7 1 . 6 Tactical Retreats 34 | . 5 1 6 3 . . . . 1 . . . 9 2 3 2 . 2 Traps | -11 -10 -9 -8 -8 -8 -8 -6 -6 -5 -5 -5 -5 -4 -4 -4 -4 -4 -3 ------- Run | Yrd Mat Mat Mat Sto Rec Scr Fac DSF Fac Upp Upp Zhi Pro Fac Upp Upp War Pro Traps Triggered 3 | . 1 . . 1 . . . . 1 . . . . . . . . . Indirectly . | . . . . . . . . . . . . . . . . . . . Trap Hack Attempts . | . . . . . . . . . . . . . . . . . . . Triggered . | . . . . . . . . . . . . . . . . . . . Disarmed . | . . . . . . . . . . . . . . . . . . . Reprogrammed 9 | . . . 6 3 . . . . . . . . . . . . . . Reused 1 | . . . 1 . . . . . . . . . . . . . . . Traps Extracted . | . . . . . . . . . . . . . . . . . . . Installed . | . . . . . . . . . . . . . . . . . . . Triggered 1 | . . . 1 . . . . . . . . . . . . . . . Machines | -11 -10 -9 -8 -8 -8 -8 -6 -6 -5 -5 -5 -5 -4 -4 -4 -4 -4 -3 ---------- Run | Yrd Mat Mat Mat Sto Rec Scr Fac DSF Fac Upp Upp Zhi Pro Fac Upp Upp War Pro Machines Disabled 6 | . . . . 2 1 . . . 1 1 . . . . 1 . . . Max in Single Turn 1 | . . . . 1 1 . . . 1 1 . . . . 1 . . . Garrison Access 3 | . . . . . . . . . 2 . . . . 1 . . . . Machines Repaired . | . . . . . . . . . . . . . . . . . . . Machines Dismantled . | . . . . . . . . . . . . . . . . . . . Machines Sabotaged . | . . . . . . . . . . . . . . . . . . . Overloaded Fab Kills . | . . . . . . . . . . . . . . . . . . . Hacking | -11 -10 -9 -8 -8 -8 -8 -6 -6 -5 -5 -5 -5 -4 -4 -4 -4 -4 -3 --------- Run | Yrd Mat Mat Mat Sto Rec Scr Fac DSF Fac Upp Upp Zhi Pro Fac Upp Upp War Pro Machines Accessed 47 | . 5 1 6 5 8 . 1 . 11 1 1 4 . 2 1 . 1 . Terminals 29 | . 5 1 5 4 6 . 1 . 6 . 1 . . . . . . . Fabricators 2 | . . . . . . . . . 1 . . . . 1 . . . . Repair Stations 2 | . . . 1 1 . . . . . . . . . . . . . . Recycling Units 2 | . . . . . 2 . . . . . . . . . . . . . Scanalyzers 2 | . . . . . . . . . 2 . . . . . . . . . Garrison Access 3 | . . . . . . . . . 2 . . . . 1 . . . . Total Hacks 183 | . 21 3 28 23 24 . 1 . 52 1 1 17 . 8 3 . 1 . Successful 123 | . 15 1 25 11 18 . 1 . 25 1 1 17 . 4 3 . 1 . Failed 59 | . 6 2 3 12 6 . . . 26 . . . . 4 . . . . Catastrophic 7 | . 1 . . . 1 . . . 5 . . . . . . . . . Database Lockouts 1 | . . . . . . . . . 1 . . . . . . . . . Manual 111 | . 18 3 16 14 21 . . . 37 . . . . 2 . . . . Terminals 131 | . 21 3 26 22 22 . 1 . 35 . 1 . . . . . . . Fabricators 9 | . . . . . . . . . 5 . . . . 4 . . . . Repair Stations 3 | . . . 2 1 . . . . . . . . . . . . . . Recycling Units 2 | . . . . . 2 . . . . . . . . . . . . . Scanalyzers 8 | . . . . . . . . . 8 . . . . . . . . . Garrison Access 8 | . . . . . . . . . 4 . . . . 4 . . . . Terminal Hacks 57 | . 6 . 13 5 5 . 1 . 4 1 1 17 . . 3 . 1 . Record 11 | . . . . . 1 . . . . 1 1 5 . . 3 . . . Part Schematic 6 | . . . 1 . 1 . . . . . . 4 . . . . . . Robot Analysis 8 | . 2 . 1 . . . . . 1 . . 4 . . . . . . Prototype ID Bank 10 | . 1 . 2 1 1 . . . 1 . . 4 . . . . . . Open Door 2 | . . . . 1 . . . . . . . . . . . . 1 . Open DSF 1 | . . . . . . . 1 . . . . . . . . . . . Branch Access Points 3 | . . . 1 1 . . . . 1 . . . . . . . . . Machine Index 1 | . 1 . . . . . . . . . . . . . . . . . Terminal Index 2 | . 1 . . . 1 . . . . . . . . . . . . . Scanalyzer Index 1 | . . . 1 . . . . . . . . . . . . . . . Unreport Threat 2 | . . . 2 . . . . . . . . . . . . . . . Locate Traps 3 | . . . 2 1 . . . . . . . . . . . . . . Reprogram Traps 2 | . . . 1 1 . . . . . . . . . . . . . . Recall Extermination 1 | . . . . . . . . . 1 . . . . . . . . . Recall Reinforcements 1 | . . . 1 . . . . . . . . . . . . . . . Registered Components 1 | . . . 1 . . . . . . . . . . . . . . . Zone Layout 2 | . 1 . . . 1 . . . . . . . . . . . . . Fabricator Hacks 4 | . . . . . . . . . 2 . . . . 2 . . . . Load Schematic 2 | . . . . . . . . . 1 . . . . 1 . . . . Build 2 | . . . . . . . . . 1 . . . . 1 . . . . Repair Station Hacks 2 | . . . 2 . . . . . . . . . . . . . . . Scan Component 1 | . . . 1 . . . . . . . . . . . . . . . Repair 1 | . . . 1 . . . . . . . . . . . . . . . Recycling Unit Hacks . | . . . . . . . . . . . . . . . . . . . Scanalyzer 2 | . . . . . . . . . 2 . . . . . . . . . Retrieve Study 2 | . . . . . . . . . 2 . . . . . . . . . Garrison Access Hacks 3 | . . . . . . . . . 2 . . . . 1 . . . . Seal Access 3 | . . . . . . . . . 2 . . . . 1 . . . . Unauthorized Hacks 55 | . 9 1 10 6 13 . . . 15 . . . . 1 . . . . Terminals 50 | . 9 1 10 5 11 . . . 14 . . . . . . . . . Track 4 | . 1 . 1 1 1 . . . . . . . . . . . . . Assimilate 6 | . . 1 . 1 . . . . 4 . . . . . . . . . Botnet 15 | . 3 . 3 . 5 . . . 4 . . . . . . . . . Disrupt 1 | . . . . 1 . . . . . . . . . . . . . . Operators 2 | . . . 1 . . . . . 1 . . . . . . . . . Skim 22 | . 5 . 5 2 5 . . . 5 . . . . . . . . . Fabricators 1 | . . . . . . . . . . . . . . 1 . . . . Prioritize 1 | . . . . . . . . . . . . . . 1 . . . . Repair Stations 1 | . . . . 1 . . . . . . . . . . . . . . Patch 1 | . . . . 1 . . . . . . . . . . . . . . Recycling Units 2 | . . . . . 2 . . . . . . . . . . . . . Tunnel 2 | . . . . . 2 . . . . . . . . . . . . . Scanalyzers 1 | . . . . . . . . . 1 . . . . . . . . . Extract 1 | . . . . . . . . . 1 . . . . . . . . . Garrison Access . | . . . . . . . . . . . . . . . . . . . Data Cores Recovered 2 | . 1 . 1 . . . . . . . . . . . . . . . Used 1 | . 1 . . . . . . . . . . . . . . . . . Hacking Detections 25 | . 5 1 3 3 4 . 1 . 7 . . . . 1 . . . . Full Trace Events 2 | . . . . . . . . . 1 . . . . 1 . . . . Feedback Events . | . . . . . . . . . . . . . . . . . . . Feedback Blocked . | . . . . . . . . . . . . . . . . . . . Robot Schematics Acquired . | . . . . . . . . . . . . . . . . . . . Robots Built . | . . . . . . . . . . . . . . . . . . . Authchips . | . . . . . . . . . . . . . . . . . . . Time . | . . . . . . . . . . . . . . . . . . . Total Robot Build Rating . | . . . . . . . . . . . . . . . . . . . Part Schematics Acquired 8 | . . . 1 . 1 . . . 2 . . 4 . . . . . . Parts Built 2 | . . . . . . . . . 2 . . . . . . . . . Authchips . | . . . . . . . . . . . . . . . . . . . Time 117 | . . . . . . . . . 24 . . . . 93 . . . . Total Part Build Rating 6 | . . . . . . . . . 6 . . . . . . . . . Part Studies Acquired 2 | . . . . . . . . . 2 . . . . . . . . . Parts Repaired 1 | . . . 1 . . . . . . . . . . . . . . . Time 32 | . . . 32 . . . . . . . . . . . . . . . Parts Recycled . | . . . . . . . . . . . . . . . . . . . Recycled Matter . | . . . . . . . . . . . . . . . . . . . Retrieved Matter . | . . . . . . . . . . . . . . . . . . . Retrieved Components . | . . . . . . . . . . . . . . . . . . . Parts Scanalyzed . | . . . . . . . . . . . . . . . . . . . Part Schematics Acquired . | . . . . . . . . . . . . . . . . . . . Parts Damaged . | . . . . . . . . . . . . . . . . . . . Bothacking | -11 -10 -9 -8 -8 -8 -8 -6 -6 -5 -5 -5 -5 -4 -4 -4 -4 -4 -3 ------------ Run | Yrd Mat Mat Mat Sto Rec Scr Fac DSF Fac Upp Upp Zhi Pro Fac Upp Upp War Pro Used RIF Installer . | . . . . . . . . . . . . . . . . . . . Robots Hacked 3 | . . . 3 . . . . . . . . . . . . . . . Non-combat 3 | . . . 3 . . . . . . . . . . . . . . . Combat . | . . . . . . . . . . . . . . . . . . . Robot Hacks Applied 3 | . . . 3 . . . . . . . . . . . . . . . parse_system 1 | . . . 1 . . . . . . . . . . . . . . . no_distress 2 | . . . 2 . . . . . . . . . . . . . . . Relay Couplers Released . | . . . . . . . . . . . . . . . . . . . Fabnet Peak Effective % . | . . . . . . . . . . . . . . . . . . . Robots Rewired . | . . . . . . . . . . . . . . . . . . . Allies Hacked . | . . . . . . . . . . . . . . . . . . . Hacks Repelled . | . . . . . . . . . . . . . . . . . . . Allies | -11 -10 -9 -8 -8 -8 -8 -6 -6 -5 -5 -5 -5 -4 -4 -4 -4 -4 -3 -------- Run | Yrd Mat Mat Mat Sto Rec Scr Fac DSF Fac Upp Upp Zhi Pro Fac Upp Upp War Pro Total Allies 7 | . . 1 . 3 . . . . 3 . . . . . . . . . Largest Group 3 | . . 1 . 3 . . . . 2 . . . . . . . . . Highest-Rated Group 72 | . . 10 . 72 . . . . 36 . . . . . . . . . Highest-Rated Ally 31 | . . 10 . 31 . . . . 26 . . . . . . . . . Total Orders 8 | . . . . . . . . . . 1 2 2 3 . . . . . ROAM 2 | . . . . . . . . . . . 1 1 . . . . . . FOLLOW 1 | . . . . . . . . . . . . . 1 . . . . . RETURN 5 | . . . . . . . . . . 1 1 1 2 . . . . . Ally Attacks 8 | . . . . 8 . . . . . . . . . . . . . . Total Damage 127 | . . . . 127 . . . . . . . . . . . . . . Kills . | . . . . . . . . . . . . . . . . . . . Allies Corrupted . | . . . . . . . . . . . . . . . . . . . Allies Melted . | . . . . . . . . . . . . . . . . . . . Intel | -11 -10 -9 -8 -8 -8 -8 -6 -6 -5 -5 -5 -5 -4 -4 -4 -4 -4 -3 ------- Run | Yrd Mat Mat Mat Sto Rec Scr Fac DSF Fac Upp Upp Zhi Pro Fac Upp Upp War Pro Active Infowar (turns) 5760 | 14 687 196 327 260 732 225 29 38 762 240 304 134 484 227 416 261 241 183 Optics 4862 | . . . 326 260 732 225 29 38 762 240 304 134 484 227 416 261 241 183 Sensors 1028 | . . . . . . . . . 632 . . . . . . 70 241 85 Terrain 68 | . . . . . . . . . 68 . . . . . . . . . Structural 1673 | . . . . 169 690 225 29 38 522 . . . . . . . . . Seismic 1376 | 14 647 44 280 17 . . . . . . . . . . . 50 235 89 Decoding 2061 | . . . . . . . . . . . 115 134 484 227 416 261 241 183 T.N.C. 811 | . 527 196 88 . . . . . . . . . . . . . . . Robot Analysis Total 8 | . 2 . 1 . . . . . 1 . . 4 . . . . . . Derelict Logs Recovered 7 | . . . . . . . . . . 2 1 . 1 . 2 1 . . Drone Launches 12 | . . . . . . . . . . 3 6 3 . . . . . . Drone Recoveries 12 | . . . . . . . . . . 3 3 3 3 . . . . . Decoded 0b10 Intel 21 | . . . . . . . . . . . . . . 21 . . . . Emergency Access 1 | . . . . . . . . . . . . . . 1 . . . . Items 19 | . . . . . . . . . . . . . . 19 . . . . Patrols 1 | . . . . . . . . . . . . . . 1 . . . . Exploration | -11 -10 -9 -8 -8 -8 -8 -6 -6 -5 -5 -5 -5 -4 -4 -4 -4 -4 -3 ------------- Run | Yrd Mat Mat Mat Sto Rec Scr Fac DSF Fac Upp Upp Zhi Pro Fac Upp Upp War Pro Turns Passed 5892 | 60 773 196 327 260 732 225 29 38 762 240 304 134 484 227 416 261 241 183 Spaces Moved 7015 | 33 764 187 276 258 483 440 55 58 1123 320 280 139 758 321 491 363 404 262 Core 7015 | 33 764 187 276 258 483 440 55 58 1123 320 280 139 758 321 491 363 404 262 Treads . | . . . . . . . . . . . . . . . . . . . Legs . | . . . . . . . . . . . . . . . . . . . Wheels . | . . . . . . . . . . . . . . . . . . . Hover . | . . . . . . . . . . . . . . . . . . . Flight . | . . . . . . . . . . . . . . . . . . . Fastest Speed 50 | 50 50 50 50 50 50 50 50 50 50 50 50 50 50 50 50 50 50 50 Average Speed 54 | 86 59 50 56 56 50 50 50 50 51 54 84 84 50 50 50 59 50 50 Slowest Speed 250 | 100 100 50 150 100 50 50 50 50 100 100 100 100 150 50 50 100 50 250 Overloaded Moves . | . . . . . . . . . . . . . . . . . . . Propulsion Burnouts . | . . . . . . . . . . . . . . . . . . . Robots Hopped . | . . . . . . . . . . . . . . . . . . . Potential Cave-ins 3 | . . . . . . . . . . . . . . . . . . 3 Cave-ins Triggered . | . . . . . . . . . . . . . . . . . . . Teleports 1 | . . . . . . . . . . . . . . . . . . 1 Exploration Rate (%) 48 | 4 89 24 32 51 93 51 2 54 42 60 51 60 80 7 51 53 67 57 Regions Visited 18 Branch Regions 11 Pre-discovered Areas 14 | . 2 . . . 4 . . . 1 1 1 3 . . 2 . . . Known Exits Taken 9 | . 1 1 1 1 1 1 1 . 1 . . . 1 . . . . . Unknown Exits Taken 8 | 1 . . . . . . . . . 1 1 1 . 1 1 1 1 . Scrap Searched 13 | . . . . . . 3 . . . 2 1 . 3 . . 3 . 1 Spaces Dug 80 | . . 1 2 5 2 . . . 22 2 3 . 13 10 . 14 . 6 Terrain Destroyed 219 | . . 2 31 5 2 . . . 22 2 3 . 34 10 . 15 . 93 Melee 59 | . . . 2 5 2 . . . 22 2 3 . 13 10 . . . . Projectile 26 | . . 2 . . . . . . . . . . . . . 15 . 9 AOE 134 | . . . 29 . . . . . . . . . 21 . . . . 84 Terrain Rammed . | . . . . . . . . . . . . . . . . . . . Walls Destroyed . | . . . . . . . . . . . . . . . . . . . Machines Disabled . | . . . . . . . . . . . . . . . . . . . Actions | -11 -10 -9 -8 -8 -8 -8 -6 -6 -5 -5 -5 -5 -4 -4 -4 -4 -4 -3 --------- Run | Yrd Mat Mat Mat Sto Rec Scr Fac DSF Fac Upp Upp Zhi Pro Fac Upp Upp War Pro Total 8568 | 44 934 244 400 335 963 443 55 64 1246 381 326 150 825 369 658 391 444 296 Wait 1050 | . 64 20 60 26 473 3 1 1 52 55 32 1 35 31 160 5 29 2 Move 6997 | 32 763 186 275 257 482 439 54 57 1122 319 279 138 757 320 490 362 403 262 Hop . | . . . . . . . . . . . . . . . . . . . Pick Up 27 | . 8 . 4 2 1 . . 1 2 . . 2 . . 3 1 2 1 Fast Attach 58 | 3 2 3 5 4 1 . . 4 13 1 1 4 3 2 1 5 4 2 Attach 31 | . 3 2 5 4 1 . . . 1 1 1 1 3 . 1 1 . 7 Detach 18 | . . 1 3 4 . . . . 2 1 . . . . 1 1 1 4 Swap 25 | . 2 2 5 9 1 1 . . 5 . . . . . . . . . Drop 30 | . 1 2 4 3 . . . 1 9 1 . 2 . . . 1 5 1 Fire 207 | 9 91 28 29 14 . . . . . . . . 2 . 2 15 . 17 Melee 125 | . . . 10 12 4 . . . 40 3 13 2 25 16 . . . . Ram . | . . . . . . . . . . . . . . . . . . . Kick . | . . . . . . . . . . . . . . . . . . . Crush . | . . . . . . . . . . . . . . . . . . . Escape Stasis . | . . . . . . . . . . . . . . . . . . . Rewire . | . . . . . . . . . . . . . . . . . . . Trap . | . . . . . . . . . . . . . . . . . . . Miscellaneous . | . . . . . . . . . . . . . . . . . . . Route ------- -11/Scrapyard -10/Materials (discovered 5 exits: *Mat x3 / *Min / [*Sub]) -9/Materials (discovered 4 exits: *Mat x3 / Min) -8/Materials (discovered 2 exits: Fac / *Sto) -8/Storage -8/Recycling (discovered 2 exits: Fac / *Scr) -8/Scraptown -6/Factory (discovered 6 exits: *Fac x3 / Low x2 / DSF) -6/DSF -5/Factory (discovered 5 exits: *Fac x3 / *Upp x2) -5/Upper Caves -5/Upper Caves (discovered 2 exits: *Fac / *Zhi) -5/Zhirov -4/Proximity Caves -4/Factory -4/Upper Caves -4/Upper Caves (discovered 2 exits: Res / *War) -4/Warlord -3/Proximity Caves History --------- Turn | Location | Event 33 | -11/Scrapyard | Discovered new exit (range 12) 61 | -11/Scrapyard | Entered Materials 147 | -10/Materials | Discovered new exit (range 3) 285 | -10/Materials | Discovered new exit (range 16) 292 | -10/Materials | Destroyed 7 combat bots 302 | -10/Materials | Build established: Mutant 420 | -10/Materials | Discovered new exit (range 14) 445 | -10/Materials | Discovered new exit (range 15) 504 | -10/Materials | Learned location of 2 exits from Mines 534 | -10/Materials | Discovered new exit (range 8) 539 | -10/Materials | Learned location of 2 exits from Materials 561 | -10/Materials | Derelicts attacked the area 564 | -10/Materials | Learned location of 2 exits from Mines 580 | -10/Materials | Identified exit to Materials 580 | -10/Materials | Identified exit to Mines 589 | -10/Materials | Learned location of 2 exits from Materials 596 | -10/Materials | Learned location of Mines (-9) 628 | -10/Materials | Build established: Scavenger-Mutant 686 | -10/Materials | Core integrity fell below 50% 834 | -10/Materials | Entered another Materials area 834 | -9/Materials | Evolved 2 slots: Utility x2 835 | -9/Materials | Identified exit to Mines 836 | -9/Materials | Identified exit to Materials 1030 | -9/Materials | Entered another Materials area 1030 | -8/Materials | Evolved 2 slots: Utility x2 1031 | -8/Materials | Identified exit to Factory 1140 | -8/Materials | Identified exit to Storage 1180 | -8/Materials | Repaired Weight Redist. System? 1357 | -8/Materials | Entered Storage 1358 | -8/Storage | Identified exit to Recycling 1376 | -8/Storage | Lost 3 parts (1p1u1w) 1414 | -8/Storage | Met a pair of Derelict thieves 1544 | -8/Storage | Lost 3 allies 1560 | -8/Storage | Core integrity fell below 50% 1567 | -8/Storage | Used back door to open Recycling access 1617 | -8/Storage | Entered Recycling 1623 | -8/Recycling | Lost 3 parts (1p1u1w) 1855 | -8/Recycling | Scanned before Scraplab entrance 1861 | -8/Recycling | Discovered new exit (range 11) 1862 | -8/Recycling | Entered Scraplab 1900 | -8/Recycling | Build established: Hacker-Mutant 1903 | -8/Recycling | Learned 2 Lower Caves zone layouts 1975 | -8/Recycling | Learned location of 3 exits from Factory 2035 | -8/Recycling | Learned Storage trap positions 2128 | -8/Recycling | Identified exit to Scraptown 2221 | -8/Recycling | Learned Factory emergency access door positions 2267 | -8/Recycling | Identified exit to Factory 2325 | -8/Recycling | Learned location of Zion (-6) 2349 | -8/Recycling | Entered Scraptown 2414 | -8/Scraptown | Visited Fellowship of the Rings 2423 | -8/Scraptown | Visited Red Mages 2429 | -8/Scraptown | Visited Cyclists 2442 | -8/Scraptown | Visited IN-MT5's Study 2458 | -8/Scraptown | Visited Cave Peace 2461 | -8/Scraptown | Visited TADAMA 2466 | -8/Scraptown | Visited Symbiants 2565 | -8/Scraptown | Heard Great Nut preacher, LISTEN AND RECITE! 2573 | -8/Scraptown | Discovered exit to Factory (range 3) 2574 | -8/Scraptown | Entered Factory 2574 | -6/Factory | Evolved 4 slots: Utility x4 2575 | -6/Factory | Identified exit to Lower Caves 2576 | -6/Factory | Identified exit to Factory 2603 | -6/Factory | Identified exit to DSF 2603 | -6/Factory | Entered DSF 2612 | -6/DSF | Discovered exit to Factory (range 19) 2626 | -6/DSF | Additional patrols routed to DSF 2628 | -6/DSF | Found Prototype Hackware 2628 | -6/DSF | Identified Exp. System Shield 2630 | -6/DSF | Found Exp. System Shield 2632 | -6/DSF | Found Exp. System Shield 2634 | -6/DSF | Found Exp. System Shield 2641 | -6/DSF | Entered Factory 2641 | -5/Factory | Evolved 2 slots: Utility x2 2712 | -5/Factory | Fabricated Adv. Weight Redist. System (x2) 2915 | -5/Factory | Identified exit to Upper Caves 2962 | -5/Factory | Watched by a mysterious "MATRIX" hacker 2996 | -5/Factory | Build established: Wizard-Scout 3027 | -5/Factory | Learned location of 3 exits from Research 3057 | -5/Factory | Discovered new exit (range 12) 3083 | -5/Factory | Learned 8 Research zone layouts 3131 | -5/Factory | Loaded intel: 6 repair station locations 3138 | -5/Factory | Central database locked down 3167 | -5/Factory | Learned Extension trap positions 3195 | -5/Factory | Learned location of Testing (-3) 3241 | -5/Factory | Loaded intel: 8 recycling unit locations 3278 | -5/Factory | Identified exit to Factory 3391 | -5/Factory | Lost 6 parts (2p4u) 3403 | -5/Factory | Entered Upper Caves 3554 | -5/Upper Caves | Entered a destroyed Warlord outpost 3568 | -5/Upper Caves | Encountered a Warlord checkpoint 3571 | -5/Upper Caves | Learned 4 Factory zone layouts 3637 | -5/Upper Caves | Attracted the attention of an 0b10 checkpoint 3640 | -5/Upper Caves | Discovered new exit (range 6) 3643 | -5/Upper Caves | Entered another Upper Caves area 3647 | -5/Upper Caves | Discovered exit to Factory (range 12) 3661 | -5/Upper Caves | Build established: Wizard-Mutant 3816 | -5/Upper Caves | Encountered a Warlord checkpoint 3940 | -5/Upper Caves | Discovered new exit (range 7) 3947 | -5/Upper Caves | Entered Zhirov 3947 | -5/Zhirov | Accompanied by 3 allies 3947 | -5/Zhirov | Discovered new exit (range 3) 3965 | -5/Zhirov | Met Zhirov 3987 | -5/Zhirov | Learned location of Command (-1) 3992 | -5/Zhirov | Zhirov requested help retrieving the SGEMP Prototype 4007 | -5/Zhirov | Found Alien Artifact 4007 | -5/Zhirov | Identified Integrated Dissipator 4007 | -5/Zhirov | Installed Integrated Dissipator, increased core heat dissipation (+20) 4020 | -5/Zhirov | Found Alien Artifact 4081 | -5/Zhirov | Entered Proximity Caves 4081 | -4/Proximity Caves | Accompanied by 3 allies 4125 | -4/Proximity Caves | Attracted the attention of an 0b10 outpost 4156 | -4/Proximity Caves | Spotter reported a threat 4169 | -4/Proximity Caves | Core integrity fell below 50% 4194 | -4/Proximity Caves | Destroyed 9 combat bots 4195 | -4/Proximity Caves | Lost 5 parts (1p3u1w) 4206 | -4/Proximity Caves | Learned Research stockpile data 4207 | -4/Proximity Caves | Spotted B-86 Titan 4259 | -4/Proximity Caves | Spotter reported a threat 4361 | -4/Proximity Caves | Core integrity fell below 20% 4512 | -4/Proximity Caves | Spotter reported a threat 4560 | -4/Proximity Caves | Discovered exit to Factory (range 10) 4565 | -4/Proximity Caves | Entered Factory 4565 | -4/Factory | Evolved 2 slots: Utility x2 4764 | -4/Factory | Discovered new exit (range 10) 4792 | -4/Factory | Entered Upper Caves 4880 | -4/Upper Caves | Learned Armory trap positions 4880 | -4/Upper Caves | Learned Armory stockpile data 4880 | -4/Upper Caves | Learned Extension garrison access intel 4906 | -4/Upper Caves | Attracted the attention of an 0b10 base 5200 | -4/Upper Caves | Discovered new exit (range 12) 5208 | -4/Upper Caves | Entered another Upper Caves area 5243 | -4/Upper Caves | Identified exit to Research 5327 | -4/Upper Caves | Found Alien Artifact 5327 | -4/Upper Caves | Identified Core Expander 5327 | -4/Upper Caves | Installed Core Expander, added new Power slot 5459 | -4/Upper Caves | Discovered new exit (range 18) 5469 | -4/Upper Caves | Entered Warlord 5545 | -4/Warlord | Found Prototype Device 5545 | -4/Warlord | Identified Minesniffer Drone Bay 5567 | -4/Warlord | Found Prototype Special Weapon 5567 | -4/Warlord | Identified RU-N14's Throwing Claymores v3 5592 | -4/Warlord | Met Warlord 5617 | -4/Warlord | Warlord's base attacked by MAIN.C 5668 | -4/Warlord | Opened side exit 5707 | -4/Warlord | Discovered new exit (range 9) 5710 | -4/Warlord | Entered Proximity Caves 5784 | -3/Proximity Caves | Spotted B-86 Titan 5796 | -3/Proximity Caves | Core integrity fell below 50% 5824 | -3/Proximity Caves | Core integrity fell below 20% 5830 | -3/Proximity Caves | Lost 6 parts (2p3u1w) 5849 | -3/Proximity Caves | Identified Transdimensional Reconstructor 5849 | -3/Proximity Caves | Warped through subspace 5893 | -3/Proximity Caves | Ambushed by research squad 5893 | -3/Proximity Caves | Destroyed by P-80 Master with Gamma Rifle Last Messages --------------- 05831_ Dropped Lgt. Antimatter Reactor. 05831_ Imp. Hacking Suite destroyed. 05832_ Acquired 31 matter. 05844_ Mak. Power Source destroyed. 05849_ Identified Transdimensional Reconstructor. 05849_ Warped through subspace. 05852_ Acquired Lgt. Antimatter Reactor. 05864_ Searching scrap... 05864_ Found Imp. Launcher Guidance Computer. 05864_ Found 66 Matter. 05865_ Acquired 49 matter. 05866_ Acquired Imp. Launcher Guidance Computer. 05867_ Acquired 10 matter. 05892_ Slug penetrates Wall. 05892_ Penetrated by Slug. 05893_ P-80 Master: "UNIQUE TECHNOLOGY DETECTED, NEUTRALIZE FOR ANALYSIS." 05893_ Penetrated by Slug. 05893_ Slug penetrates Wall. Map ----- +----------------------------------------------------+ | | | | | | | | | | | | | | | | | ?????????????????????????????????????????????????? | | ?????????????????????????????????????????????????? | | ?????????????????????????????????????????????????? | | ?????????????????????????????????????????????????? | | ?????????????????????????????????????????????????? | | ?????????????????????????????????????????????????? | | ?????????????????????????????????????????????????? | | ?????????????????????????????????????????????????? | | ?????????????????????????????????????????????????? | | ?????????????????????????????????????????????????? | | ?????????????????????????????????????????????????? | | ?????????????????????????????????????????????????? | | ??????????#?????###?????#####????????????????????? | | ?????????# ?????? ????#hph#????????????????????? | | #????????# ????#??# ##### #?????##?????????????? | | ??????## ????#gg# # ##### ##????????????? | | ##???## ????# #????????????? | | #?## ?????????# @ #?????????????? | | ## ?????????## ##?????????????? | | # #????????## #??????????????? | | # #??????? ### #### ??????? | | # ######## #?## ###??? #?????? | | ## ???# #????? ## #?????? | | #?# #???## #???????#???? ???? | | #???# #????# ##???????????????????? | | #????# #?????# #????????????????????? | | #####?# ##????## #????????????????????? | | #### ####### ## #???????????????????? | | #?# ## #? ?????????????????? | | #?## ### #? ??????????????? | | #### #?## ####? ????????????? | | #??# #????#### ? #?????????? | | #?# #???????? ?? ???????? | | ####?## ####?????????# ?? ??????? | | ## #?????# ###????????????? ??? ???????? | | ### #????# #???????????????? ## ??????????? | | ##?# ???# #?????????????????#??##?????????? | | #??# ? #???????????????????????????????? | | #??# ???????????????????????????????? | | ###??# ### ???????????????????????????????? | | ????? ##?## ???????????????????????????????? | | ????? ###???####??????????????????????????????? | +----------------------------------------------------+ Best States ------------- Heat Dissipation 63 Energy Generation 31 Energy Capacity 265 Matter Stores 300 Matter Capacity 300 Sight Range 20 Robot Scan Range 15 Terrain Scan Range 14 Terrain Scan Density 10 Additional Mass Support 9 Armor Coverage 150 Core Shielding 30 Utility Shielding 90 Evasion (%) 50 Launcher Accuracy 60 Offensive Hacking 34 Defensive Hacking 74 Item Schematics ----------------- Adv. Weight Redist. System | -8/Materials | Hacked Plasma Cannon | -8/Recycling | Hacked Nuclear Pulse Array | -5/Factory | Extracted Hvy. Rocket Launcher | -5/Factory | Extracted Assault Drone Bay | -5/Zhirov | Free Exp. Heat Sink | -5/Zhirov | Free Exp. Optical Array | -5/Zhirov | Free Imp. Arc Thrower | -5/Zhirov | Free Robot Schematics ------------------ None Fabricated ------------ Adv. Weight Redist. System | x2 | -5/Factory Repaired ---------- Weight Redist. System | 36% | -8/Materials Studied --------- Mni. Grenade Launcher | -5/Factory | Hacked Imp. Ion Engine | -5/Factory | Hacked Alien Tech Used ----------------- Integrated Dissipator Core Expander Transdimensional Reconstructor Achievements -------------- None Challenges ------------ None Game ------ Seed FlyingLightningJoltstriker Manual? 0 Play Time 01:26:06 Cumulative 411.1 hours Start 2026.09.07 @ 15:56:55 End 2026.09.07 @ 17:28:05 Sessions 1 Manual Loads 0 Difficulty Rogue Special Mode None Game No. 195 Rogue 195 Adventurer 0 Explorer 0 Win Type - Total 43 Types 22/1/9/2/5/1/1/0/0/2 Lore% 91 Gallery% 81 Achievement% 88 Wizard Run 0 Options --------- Layout 1 ASCII 0 Keyboard 0 Movement Numpad Keybinds 0 Fullscreen 1 Font 24/Smallcaps Map View 50x35 Zoom Use 0% Tactical HUD 1 Map Filters NONE Filters NONE Steam 1 RUN: 9fe8af60-3014-4e8d-a26e-b8f6ada7cc77